bitfinex-derivatives/quotes_SOLF0:USTF0_20250716
["timestamp","ask_amount","ask_price","bid_price","bid_amount"]
[1752668526318,0.04183742,167.12,167.11,5.9833]
[1752668528328,14.17160868,167.18,167.17,5.9812]
[1752668528531,5.9806,167.19,167.17,5.9812]
[1752668528830,14.17160868,167.2,167.14,172.52]
[1752668529233,5.9806,167.19,167.16,5.9814]
[1752668529533,14.17160868,167.2,167.16,5.9814]
[1752668529732,5.9808,167.18,167.16,0.04453909]
[1752668530333,4.10056049,167.18,167.16,0.04453909]
[1752668531234,5.9812,167.17,167.16,0.04453909]
[1752668532235,4.10056049,167.18,167.16,0.04453909]
[1752668532734,5.9812,167.17,167.16,0.04453909]
[1752668533834,14.21758934,167.18,167.09,178.42447845]
[1752668534034,4.10056049,167.14,167.09,172.48]
[1752668534533,10.08286049,167.14,167.11,5.9831]
[1752668534926,10.12353846,167.14,167.11,5.9831]
[1752668536436,4.14123846,167.14,167.09,172.48]
[1752668537631,4.14123846,167.14,167.11,5.9831]
[1752668538536,10.12353846,167.14,167.11,5.9831]
[1752668538936,4.10056049,167.12,167.09,172.48]
[1752668540137,10.11172616,167.14,167.09,172.48]
[1752668540335,4.10056049,167.13,167.09,172.48]
[1752668540635,4.10056049,167.11,167.09,172.48]
[1752668542232,10.07104819,167.13,167.09,172.48]
[1752668542435,4.10056049,167.12,167.09,172.48]
[1752668545339,4.10056049,167.12,167.07,5.9844]
[1752668545539,4.10056049,167.12,167.08,5.9843]
[1752668545741,10.08356049,167.12,167.06,172.4]
[1752668545941,4.10056049,167.12,167.06,172.4]
[1752668546138,4.10056049,167.12,167.07,5.9845]
[1752668546337,0.0415569,167.11,167.07,5.9845]
[1752668547238,0.0415569,167.11,167.06,178.3649]
[1752668548241,0.0415569,167.11,167.07,5.9846]
[1752668549340,6.0248569,167.11,167.07,5.9846]
[1752668549642,0.0415569,167.11,167.07,5.9846]
[1752668550645,6.0250569,167.11,167.06,178.3649]
[1752668551439,5.9838,167.1,167.06,5.9849]
[1752668551642,10.08436049,167.1,167.06,178.3249]
[1752668552944,4.10056049,167.1,167.06,178.3249]
[1752668553749,10.08426049,167.1,167.06,178.3249]
[1752668554047,4.10056049,167.1,167.06,172.34]
[1752668554750,5.9841,167.09,167.06,172.34]
[1752668558349,5.9844,167.08,167.06,172.34]
[1752668558647,10.08496049,167.08,167.06,172.34]
[1752668558843,5.9847,167.07,167.06,172.34]
[1752668560141,10.08506049,167.08,167.06,172.34]
[1752668561550,10.08506049,167.08,167.04,172.28]
[1752668562148,10.07104819,167.1,167.04,172.28]
[1752668562452,0.03785643,167.08,167.04,172.28]
[1752668562648,0.03785643,167.08,167.06,5.9848]
[1752668562847,5.9837,167.1,167.06,5.9848]
[1752668563257,0.04288521,167.09,167.06,5.9848]
[1752668563755,0.04288521,167.09,167.07,5.9847]
[1752668564955,0.04288521,167.09,167.07,178.2647]
[1752668567660,0.04288521,167.09,167.07,172.28]
[1752668569868,6.02718521,167.09,167.07,172.28]
[1752668571966,0.04288521,167.09,167.07,172.28]
[1752668574168,0.04288521,167.09,167.08,5.9844]
[1752668577069,0.04288521,167.09,167.08,10.08496049]
[1752668577271,10.07104819,167.14,167.08,9.99755177]
[1752668577572,10.07104819,167.14,167.09,4.10056049]
[1752668577771,10.07104819,167.14,167.11,5.983]
[1752668577965,10.07104819,167.14,167.12,172.3]
[1752668578270,16.05304819,167.15,167.12,172.3]
[1752668579172,5.982,167.15,167.12,178.2829]
[1752668579471,205.87239031,167.16,167.12,172.3]
[1752668579873,211.85409031,167.16,167.12,178.2828]
[1752668580969,5.9819,167.15,167.12,178.2828]
[1752668581573,5.9819,167.15,167.12,172.3]
[1752668581872,10.07104819,167.15,167.11,0.04187612]
[1752668582474,5.9824,167.14,167.11,6.02497612]
[1752668582871,16.05344819,167.14,167.11,6.02497612]
[1752668584776,5.9824,167.14,167.11,6.02497612]
[1752668585675,16.05294819,167.15,167.11,6.02497612]
[1752668586777,20.15350868,167.15,167.11,6.02497612]
[1752668588179,14.17160868,167.15,167.11,6.02497612]
[1752668589179,14.17160868,167.15,167.12,5.9829]
[1752668591082,4.10056049,167.15,167.12,5.9829]
[1752668591282,10.08256049,167.15,167.12,5.9829]
[1752668593083,4.10056049,167.15,167.11,0.04187612]
[1752668593482,195.80134212,167.16,167.11,0.04187612]
[1752668593686,195.80134212,167.16,167.11,4.14243661]
[1752668593885,195.80134212,167.16,167.13,5.9823]
[1752668595485,201.78314212,167.16,167.12,5.9828]
[1752668596880,211.85419031,167.16,167.12,5.9828]
[1752668597084,201.78314212,167.16,167.12,5.9828]
[1752668600787,5.9819,167.15,167.12,5.9828]
[1752668601588,5.9825,167.14,167.11,0.04187612]
[1752668602791,205.87239031,167.16,167.11,0.04187612]
[1752668602989,195.80134212,167.16,167.11,0.04187612]
[1752668603188,201.78304212,167.16,167.13,5.9824]
[1752668604094,211.85409031,167.16,167.13,5.9824]
[1752668606695,5.9821,167.15,167.11,6.02487612]
[1752668606889,14.17160868,167.15,167.11,6.02487612]
[1752668607289,5.9824,167.14,167.11,6.02487612]
[1752668608197,5.9826,167.13,167.11,0.04187612]
[1752668608394,10.07104819,167.14,167.11,0.04187612]
[1752668608998,16.05344819,167.14,167.11,6.02497612]
[1752668610299,4.10056049,167.13,167.11,0.04187612]
[1752668610498,14.17160868,167.13,167.11,0.04187612]
[1752668611700,10.07104819,167.12,167.11,0.04187612]
[1752668613901,16.05404819,167.12,167.11,0.04187612]
[1752668616500,5.983,167.12,167.11,0.04187612]
[1752668617501,16.05656273,167.12,167.11,0.04187612]
[1752668617701,5.983,167.12,167.11,0.04187612]
[1752668619503,5.9839,167.1,167.07,5.9846]
[1752668619699,14.17497041,167.1,167.06,172.22]
[1752668619904,10.07440992,167.09,167.06,172.22]
[1752668620508,10.07440992,167.09,167.07,5.9847]
[1752668620708,16.05830992,167.1,167.06,172.22]
[1752668621509,16.05830992,167.1,167.07,5.9846]
[1752668622212,5.9839,167.1,167.07,5.9846]
[1752668622605,5.9839,167.1,167.06,172.22]
[1752668622606,16.05830992,167.1,167.06,178.2049]
[1752668623411,20.15887041,167.1,167.07,5.9848]
[1752668627216,10.08446049,167.1,167.07,5.9848]
[1752668629016,5.9841,167.09,167.06,178.2049]
[1752668630216,10.08436049,167.1,167.06,178.2049]
[1752668631218,4.10056049,167.1,167.08,5.9844]
[1752668631420,4.10056049,167.1,167.06,172.22]
[1752668632420,10.08426049,167.1,167.06,178.2048]
[1752668632922,2.62340776,167.09,167.06,178.2048]
[1752668634824,2.62340776,167.09,167.07,5.9847]
[1752668636327,8.60750776,167.09,167.07,5.9847]
[1752668637218,8.60750776,167.09,167.06,172.22]
[1752668637219,10.07440992,167.12,167.08,2.62340776]
[1752668637425,2.62340776,167.13,167.09,2.62340776]
[1752668638621,10.07440992,167.14,167.1,2.62340776]
[1752668639025,2.62340776,167.13,167.09,2.62340776]
[1752668639227,5.9832,167.12,167.1,5.9835]
[1752668639625,2.62340776,167.13,167.07,2.62340776]
[1752668639626,2.62340776,167.11,167.07,2.62340776]
[1752668639827,8.60690776,167.11,167.08,5.9841]
[1752668640826,5.9838,167.1,167.08,5.9841]
[1752668641428,10.07440992,167.12,167.06,174.84340776]
[1752668641621,2.62340776,167.1,167.06,174.84340776]
[1752668641825,2.62340776,167.11,167.06,172.22]
[1752668642128,2.62340776,167.11,167.06,174.84340776]
[1752668642329,5.9837,167.1,167.08,5.9842]
[1752668645533,5.9837,167.1,167.06,172.24]
[1752668645937,5.9837,167.1,167.07,5.9846]
[1752668646434,14.1725309,167.11,167.06,172.24]
[1752668647537,20.1559309,167.11,167.08,5.9842]
[1752668649335,16.05810992,167.1,167.08,5.9842]
[1752668650742,10.07440992,167.1,167.08,5.9842]
[1752668651139,16.05810992,167.1,167.08,5.9842]
[1752668652039,10.07440992,167.1,167.09,5.984]
[1752668652242,10.07440992,167.1,167.06,172.24]
[1752668652444,16.05810992,167.1,167.07,11.84667202]
[1752668652642,16.05810992,167.1,167.07,5.9845]
[1752668653043,16.05810992,167.1,167.08,5.9844]
[1752668653244,10.07440992,167.1,167.08,5.9844]
[1752668654345,10.07440992,167.1,167.09,5.984]
[1752668654541,10.07440992,167.12,167.06,176.33747428]
[1752668654740,10.07440992,167.12,167.07,5.86326939]
[1752668654936,10.07440992,167.12,167.11,5.9833]
[1752668656744,10.07440992,167.12,167.1,5.9835]
[1752668656945,10.07440992,167.11,167.1,5.9835]
[1752668657145,10.07440992,167.11,167.04,4.09678075]
[1752668657349,10.07440992,167.11,167.05,178.08343051]
[1752668657544,10.07440992,167.1,167.06,5.86343051]
[1752668657744,10.07440992,167.1,167.07,5.86343051]
[1752668657944,10.07440992,167.1,167.05,172.22]
[1752668658142,10.07440992,167.1,167.06,5.864196]
[1752668658337,10.07440992,167.1,167.07,5.864196]
[1752668658545,10.07440992,167.1,167.08,5.9841]
[1752668658745,10.07440992,167.1,167.05,172.22]
[1752668658944,10.07440992,167.11,167.06,5.86431421]
[1752668659141,10.07440992,167.11,167.07,5.86431421]
[1752668659347,10.07440992,167.11,167.08,5.86431421]
[1752668659546,10.07440992,167.11,167.05,176.31678075]
[1752668659746,10.07440992,167.11,167.1,5.9837]
[1752668660351,10.07440992,167.12,167.1,5.9837]
[1752668660551,10.07440992,167.11,167.1,5.9837]
[1752668664252,5.983,167.12,167.09,5.9839]
[1752668664444,10.08021897,167.1,167.09,5.9839]
[1752668665051,10.08021897,167.11,167.09,5.9839]
[1752668665653,10.08021897,167.1,167.05,176.31678075]
[1752668665855,10.08021897,167.1,167.06,5.88535036]
[1752668666050,10.08021897,167.1,167.07,5.88535036]
[1752668666256,10.08021897,167.1,167.08,5.9842]
[1752668667054,12.70323183,167.1,167.08,5.9842]
[1752668670362,12.70323183,167.1,167.09,5.984]
[1752668670654,10.08021897,167.1,167.07,2.62301286]
[1752668671262,10.08021897,167.1,167.08,5.9841]
[1752668671664,12.70323183,167.1,167.08,5.9841]
[1752668672260,10.08021897,167.1,167.09,5.984]
[1752668675270,8.60641286,167.11,167.09,5.984]
[1752668675572,2.62301286,167.1,167.08,5.9843]
[1752668675771,10.08425215,167.09,167.08,5.9843]
[1752668680672,12.70726501,167.09,167.05,172.22]
[1752668680873,2.62301286,167.06,167.02,1.24]
[1752668681081,2.62301286,167.03,167.02,1.24]
[1752668681275,18.69346501,167.03,167.02,1.19808173]
[1752668681479,12.70726501,167.03,166.97,172.2]
[1752668681676,2.62301286,167.01,167.0,5.987]
[1752668681973,2.62301286,167.01,166.97,172.2]
[1752668682380,2.62301286,167.01,167.0,5.9873]
[1752668682974,4.10306402,167.03,167.0,5.9873]
[1752668683173,4.10306402,167.03,167.01,5.9869]
[1752668683378,14.18731617,167.06,166.99,4.10306402]
[1752668683568,4.10306402,167.06,166.99,4.10306402]
[1752668684176,5.9855,167.05,167.02,5.9862]
[1752668684578,5.9855,167.05,166.99,4.10306402]
[1752668685283,10.08425215,167.07,167.01,4.10306402]
[1752668685480,10.08425215,167.07,167.04,5.9855]
[1752668685983,10.08425215,167.09,167.03,176.32306402]
[1752668686587,16.06855215,167.09,167.06,5.9849]
[1752668687182,5.9844,167.08,167.06,5.9849]
[1752668687383,10.08425215,167.09,167.06,5.9849]
[1752668687986,16.06855215,167.09,167.06,5.9849]
[1752668688186,5.9843,167.09,167.06,5.9849]
[1752668691084,16.06855215,167.09,167.06,5.9849]
[1752668692785,10.08425215,167.08,167.06,5.9849]
[1752668694987,16.06875215,167.08,167.06,5.9849]
[1752668695689,16.06875215,167.08,167.05,5.9853]
[1752668695888,5.9845,167.08,167.05,5.9853]
[1752668696186,16.06845215,167.09,167.06,5.985]
[1752668696587,5.9844,167.08,167.06,5.985]
[1752668697490,16.06845215,167.09,167.06,5.985]
[1752668698691,5.9845,167.08,167.06,5.985]
[1752668699892,5.9848,167.07,167.05,5.9854]
[1752668700082,5.9848,167.07,167.03,176.32306402]
[1752668700391,5.9848,167.07,167.04,5.9856]
[1752668700691,5.9848,167.07,167.03,176.32306402]
[1752668700994,16.06875215,167.08,167.03,176.32306402]
[1752668701292,10.08425215,167.08,167.03,176.32306402]
[1752668701687,10.08425215,167.08,167.06,5.9851]
[1752668701888,16.06855215,167.09,167.06,5.9851]
[1752668702791,5.9845,167.08,167.06,5.9851]
[1752668705587,10.08425215,167.09,167.03,172.22]
[1752668705794,14.18731617,167.09,167.03,172.22]
[1752668705995,10.08425215,167.07,167.03,172.22]
[1752668707093,5.9853,167.06,167.04,5.9857]
[1752668708795,16.06925215,167.07,167.04,5.9857]
[1752668708994,10.08425215,167.07,167.04,5.9857]
[1752668709793,10.08425215,167.07,167.03,172.22]
[1752668710197,10.08425215,167.07,167.03,176.32306402]
[1752668710597,10.08425215,167.07,167.05,5.9852]
[1752668711598,10.08425215,167.07,167.06,5.9851]
[1752668712794,10.08425215,167.08,167.06,5.9851]
[1752668713700,10.08425215,167.08,167.07,5.9848]
[1752668713897,10.08425215,167.09,167.05,4.10306402]
[1752668714097,10.08425215,167.11,167.07,4.10306402]
[1752668715395,10.08425215,167.11,167.09,5.9839]
[1752668717403,16.06765215,167.11,167.08,5.9842]
[1752668718403,16.06765215,167.11,167.09,5.984]
[1752668719704,10.08425215,167.11,167.1,5.9837]
[1752668720006,10.08425215,167.12,167.09,4.10306402]
[1752668720802,10.08425215,167.12,167.11,5.9833]
[1752668721204,10.08425215,167.13,167.11,5.9833]
[1752668721705,16.06705215,167.13,167.1,5.9835]
[1752668722209,5.9832,167.12,167.09,5.984]
[1752668722707,10.08425215,167.11,167.09,5.984]
[1752668723111,10.08425215,167.1,167.09,5.984]
[1752668725204,10.08425215,167.1,167.02,1.19]
[1752668725412,10.06174759,167.09,167.04,4.10306402]
[1752668726003,10.06174759,167.09,167.07,5.9844]
[1752668726704,10.06174759,167.09,167.08,5.9844]
[1752668727810,10.06174759,167.09,167.07,5.9846]
[1752668728212,10.06174759,167.08,167.07,5.9846]
[1752668733409,16.04594759,167.09,167.07,5.9846]
[1752668734312,10.06174759,167.09,167.07,5.9846]
[1752668735309,10.06174759,167.08,167.07,5.9846]
[1752668735514,10.06174759,167.08,167.06,5.985]
[1752668735717,10.06174759,167.08,167.03,172.16]
[1752668735916,14.16481161,167.08,167.03,172.16]
[1752668736317,10.06174759,167.07,167.05,5.9853]
[1752668737520,16.04654759,167.07,167.05,5.9853]
[1752668737716,10.06174759,167.07,167.05,5.9853]
[1752668741319,10.06174759,167.07,167.06,5.9851]
[1752668743313,16.04654759,167.07,167.05,5.9853]
[1752668744014,10.06174759,167.07,167.05,5.9853]
[1752668746023,16.04654759,167.07,167.05,5.9853]
[1752668746816,10.06174759,167.07,167.03,172.16]
[1752668747021,10.06174759,167.06,167.01,4.10306402]
[1752668747223,10.06174759,167.06,167.02,178.1463]
[1752668747421,4.10306402,167.08,167.02,178.1463]
[1752668747422,16.04744759,167.05,167.02,178.1463]
[1752668749626,10.06174759,167.04,167.0,1.19]
[1752668749822,14.16481161,167.03,167.0,1.19]
[1752668750023,10.06174759,167.02,167.0,1.19]
[1752668750317,20.15171161,167.01,167.0,1.19]
[1752668750923,10.08996402,167.01,167.0,1.19]
[1752668751627,5.9883,166.97,166.96,172.16]
[1752668751927,4.10306402,166.99,166.96,172.16]
[1752668752227,5.9881,166.98,166.96,172.16]
[1752668753324,4.10306402,167.0,166.96,172.16]
[1752668754728,4.10306402,167.0,166.91,517.12]
[1752668754729,4.10306402,166.98,166.91,517.12]
[1752668754924,4.10306402,166.98,166.92,172.2]
[1752668755125,5.9891,166.95,166.92,178.1899]
[1752668755423,5.9891,166.95,166.92,172.2]
[1752668755623,5.9894,166.95,166.92,172.2]
[1752668755828,4.10306402,166.96,166.92,172.2]
[1752668756825,5.9897,166.94,166.92,172.2]
[1752668758224,4.10306402,166.96,166.92,172.2]
[1752668758819,5.9894,166.94,166.92,172.2]
[1752668759024,4.10306402,166.96,166.92,172.2]
[1752668759220,5.9894,166.95,166.92,172.2]
[1752668759628,4.10306402,166.96,166.92,172.2]
[1752668760428,4.10306402,166.95,166.92,172.2]
[1752668760927,5.9894,166.94,166.92,172.2]
[1752668761924,5.9898,166.93,166.92,172.2]
[1752668762329,4.10306402,166.94,166.89,172.24]
[1752668762624,5.9904,166.92,166.89,172.24]
[1752668763119,5.9899,166.93,166.9,5.9909]
[1752668764519,5.9901,166.92,166.89,172.24]
[1752668764720,5.9901,166.92,166.89,178.2311]
[1752668764932,0.03847363,166.94,166.89,172.24]
[1752668765130,0.03847363,166.94,166.92,5.9901]
[1752668765631,6.02807363,166.94,166.91,5.9903]
[1752668768532,5.9898,166.93,166.91,5.9903]
[1752668770836,6.02807363,166.94,166.91,5.9903]
[1752668771032,0.03847363,166.94,166.89,176.34306402]
[1752668773727,0.03847363,166.94,166.9,0.0386713]
[1752668774136,6.02797363,166.94,166.9,0.0386713]
[1752668774339,0.03847363,166.94,166.9,0.0386713]
[1752668774835,5.99,166.93,166.9,0.0386713]
[1752668775334,6.02807363,166.94,166.9,6.0294713]
[1752668776239,6.02807363,166.94,166.9,0.0386713]
[1752668776240,0.03847363,166.94,166.9,0.0386713]
[1752668776436,4.10306402,166.93,166.9,0.0386713]
[1752668777341,5.9903,166.92,166.9,0.0386713]
[1752668777939,10.09296402,166.93,166.9,0.0386713]
[1752668778344,4.10306402,166.93,166.9,0.0386713]
[1752668778541,5.9905,166.91,166.9,0.0386713]
[1752668780538,10.09356402,166.91,166.9,0.0386713]
[1752668781241,5.9919,166.87,166.83,695.6732]
[1752668781631,4.10306402,166.88,166.83,689.68]
[1752668782437,0.04284814,166.87,166.83,693.78306402]
[1752668782645,0.04284814,166.87,166.84,172.32]
[1752668783743,0.04284814,166.87,166.85,5.9926]
[1752668783942,0.04284814,166.87,166.84,172.32]
[1752668784644,0.04284814,166.87,166.85,5.9924]
[1752668787543,0.04284814,166.87,166.84,172.32]
[1752668787745,4.10306402,166.85,166.84,172.32]
[1752668788036,4.10306402,166.85,166.8,178.3541]
[1752668788234,5.9932,166.84,166.8,172.36]
[1752668788438,4.10306402,166.85,166.8,172.36]
[1752668788844,0.04468141,166.84,166.8,172.36]
[1752668789339,0.04468141,166.84,166.8,176.46306402]
[1752668789540,0.04468141,166.84,166.83,5.9934]
[1752668793045,4.10306402,166.91,166.86,5.9919]
[1752668793246,4.10306402,166.91,166.84,172.42]
[1752668793648,5.9914,166.89,166.86,5.992]
[1752668793949,5.9914,166.89,166.84,172.42]
[1752668794251,5.9916,166.88,166.85,5.9925]
[1752668795246,5.9919,166.87,166.84,178.4129]
[1752668796346,5.9917,166.88,166.85,5.9926]
[1752668798652,4.10306402,166.88,166.84,172.42]
[1752668799852,5.9925,166.86,166.84,172.42]
[1752668800553,5.992,166.87,166.84,172.42]
[1752668801149,5.992,166.87,166.84,178.4128]
[1752668801350,10.06121467,166.91,166.84,176.52306402]
[1752668801549,10.06121467,166.91,166.88,4.10306402]
[1752668801753,5.9896,166.94,166.88,4.10306402]
[1752668801953,138.16427869,166.95,166.88,4.10306402]
[1752668802150,128.10306402,166.95,166.9,5.9905]
[1752668802353,5.9895,166.94,166.88,4.10306402]
[1752668802855,5.9895,166.94,166.91,5.9902]
[1752668803353,140.05041467,166.95,166.88,4.10306402]
[1752668803553,5.9892,166.95,166.92,5.9899]
[1752668804258,5.9894,166.94,166.91,5.9904]
[1752668805452,13.42806425,167.0,166.91,5.9904]
[1752668805453,13.42806425,167.04,166.93,4.10306402]
[1752668805648,4.10306402,167.05,166.91,172.5]
[1752668805955,5.9864,167.03,166.98,5.9879]
[1752668806656,5.9868,167.02,166.97,5.9883]
[1752668807255,5.9869,167.01,166.97,5.9883]
[1752668807556,4.10306402,167.07,166.98,10.09106402]
[1752668808061,124.0,167.06,166.98,10.09106402]
[1752668808759,124.0,167.06,166.99,5.9876]
[1752668809060,5.9865,167.03,166.99,5.9876]
[1752668809560,124.0,167.06,166.98,10.09096402]
[1752668809759,124.0,167.06,166.98,4.10306402]
[1752668809958,4.10306402,167.05,166.98,4.10306402]
[1752668810656,5.9871,167.01,166.98,4.10306402]
[1752668812262,5.9871,167.01,166.97,10.09116402]
[1752668812767,5.9875,167.0,166.97,4.10306402]
[1752668813057,4.10306402,167.05,166.97,4.10306402]
[1752668813464,5.9868,167.02,166.98,5.9879]
[1752668813761,5.9868,167.02,166.99,0.04047276]
[1752668815464,5.9866,167.02,166.99,0.04047276]
[1752668815659,4.14206971,167.03,166.94,4.10306402]
[1752668816060,4.10306402,167.03,166.94,4.10306402]
[1752668816560,5.9875,167.0,166.96,5.9885]
[1752668816962,6.02857356,167.0,166.96,5.9885]
[1752668817262,0.04107356,167.0,166.96,4.10306402]
[1752668817763,0.04107356,167.0,166.98,5.9879]
[1752668821065,0.04107356,167.0,166.99,5.9876]
[1752668825766,0.04107356,167.0,166.98,5.9878]
[1752668826267,0.04107356,167.0,166.99,5.9876]
[1752668826769,185.61537334,167.1,166.99,178.5]
[1752668827069,185.61537334,167.1,167.02,4.10306402]
[1752668827269,5.985,167.07,167.03,5.9859]
[1752668827669,124.0,167.09,167.03,5.9859]
[1752668827870,5.9851,167.07,167.03,5.9859]
[1752668828473,5.9845,167.08,167.02,4.10306402]
[1752668828673,124.0,167.09,167.04,4.10306402]
[1752668828966,4.10306402,167.14,167.07,5.9845]
[1752668829172,5.9838,167.1,167.07,5.9845]
[1752668832975,5.9841,167.09,167.07,5.9845]
[1752668834776,5.9841,167.09,167.06,10.08806402]
[1752668836086,5.9841,167.09,167.07,5.9847]
[1752668836385,6.02796454,167.1,167.07,5.9847]
[1752668836582,0.04416454,167.1,167.07,5.9847]
[1752668837086,4.14722856,167.1,166.99,172.56]
[1752668837286,4.14722856,167.1,167.01,4.10306402]
[1752668837481,5.9849,167.07,167.01,4.10306402]
[1752668838186,5.9849,167.07,167.05,5.9854]
[1752668839590,5.9849,167.07,167.04,5.9857]
[1752668840091,5.9852,167.06,167.04,5.9857]
[1752668841290,5.9849,167.07,167.04,5.9857]
[1752668842581,5.9849,167.07,167.05,5.9855]
[1752668843491,5.9845,167.08,167.06,5.985]
[1752668844591,5.9845,167.08,167.05,5.9853]
[1752668846291,5.9845,167.08,167.06,5.985]
[1752668846491,5.9842,167.09,167.06,5.985]
[1752668847797,124.0,167.11,167.06,5.985]
[1752668847994,124.0,167.11,167.03,4.10306402]
[1752668848596,5.9843,167.09,167.06,5.9851]
[1752668848796,124.0,167.11,167.06,5.9851]
[1752668849199,5.9844,167.08,167.06,5.9851]
[1752668850297,4.10306402,167.1,167.02,4.10306402]
[1752668850997,5.9846,167.08,167.04,5.9855]
[1752668851497,5.9846,167.08,167.05,5.9854]
[1752668853005,124.0,167.11,167.06,5.9851]
[1752668853498,5.9842,167.09,167.06,5.9851]
[1752668854904,5.9844,167.08,167.05,5.9853]
[1752668856105,5.9848,167.07,167.04,5.9857]
[1752668858000,4.10306402,167.08,167.02,5.9863]
[1752668858303,4.10306402,167.04,166.92,4.10306402]
[1752668858504,4.10306402,167.02,166.94,4.10306402]
[1752668858705,5.9869,167.01,166.98,5.9876]
[1752668860906,4.10306402,166.99,166.9,639.06202262]
[1752668861103,4.10306402,166.99,166.9,643.16508664]
[1752668862303,5.9884,166.97,166.94,5.9892]
[1752668863303,5.9881,166.98,166.95,5.9888]
[1752668865708,13.38631673,167.07,166.96,5.9884]
[1752668866007,4.10306402,167.01,166.96,5.9884]
[1752668866406,5.9879,166.99,166.96,5.9884]
[1752668866909,5.988,166.98,166.96,5.9884]
[1752668869308,5.9878,166.99,166.92,4.10306402]
[1752668869808,5.9878,166.99,166.96,5.9886]
[1752668870712,4.10306402,166.99,166.92,4.10306402]
[1752668870910,4.10306402,166.97,166.9,639.06202262]
[1752668871210,5.9897,166.94,166.91,5.9903]
[1752668873410,5.9898,166.93,166.91,5.9903]
[1752668874616,5.9898,166.93,166.9,645.05272262]
[1752668874914,5.9898,166.93,166.9,127.35272262]
[1752668875815,5.9896,166.94,166.91,5.9905]
[1752668877118,5.9892,166.95,166.92,5.9901]
[1752668878321,16.07496402,167.04,166.9,121.36202262]
[1752668878524,4.10306402,166.98,166.9,121.36202262]
[1752668879221,5.9889,166.96,166.93,5.9895]
[1752668879420,4.10306402,166.98,166.91,4.10306402]
[1752668879617,5.9884,166.97,166.91,4.10306402]
[1752668880217,4.10306402,167.0,166.93,4.10306402]
[1752668880415,4.10306402,167.08,166.99,4.10306402]
[1752668880621,4.10306402,167.06,166.99,172.64]
[1752668880822,4.10306402,167.04,166.99,172.64]
[1752668881218,10.08916402,167.04,167.0,5.9869]
[1752668881415,10.08916402,167.04,166.99,172.64]
[1752668881416,4.10306402,167.04,166.99,172.64]
[1752668881721,5.9862,167.03,167.0,5.9871]
[1752668883925,5.9866,167.02,166.99,178.6275]
[1752668887128,5.987,167.01,166.99,172.64]
[1752668888124,5.9867,167.02,166.99,178.6276]
[1752668889127,5.9863,167.03,167.0,5.9871]
[1752668890728,5.986,167.04,167.0,5.9871]
[1752668893032,4.10306402,167.06,167.0,5.9871]
[1752668893330,5.986,167.04,167.01,5.9868]
[1752668896733,5.9862,167.03,167.01,5.9868]
[1752668896932,5.9862,167.03,167.0,5.987]
[1752668900831,5.9862,167.03,167.01,5.9869]
[1752668901740,5.9859,167.04,167.01,5.9869]
[1752668901941,4.10306402,167.06,167.01,5.9869]
[1752668903240,5.9862,167.03,167.0,5.9871]
[1752668905140,5.9862,167.03,166.99,172.64]
[1752668906140,5.9862,167.03,167.0,5.987]
[1752668907344,5.9862,167.03,167.01,5.9869]
[1752668907844,5.9862,167.03,167.0,5.9872]
[1752668908248,5.986,167.04,166.99,172.64]
[1752668908746,5.986,167.04,167.01,5.9867]
[1752668909946,5.9862,167.03,167.01,5.9867]
[1752668915949,137.38631673,167.11,167.01,5.9867]
[1752668916248,13.38631673,167.1,167.01,5.9867]
[1752668917245,5.9861,167.04,167.02,5.9865]
[1752668918344,5.9861,167.04,167.01,5.9868]
[1752668918545,124.0,167.11,166.99,172.64]
[1752668918752,137.38631673,167.11,166.99,172.64]
[1752668918946,137.38631673,167.11,167.01,5.9868]
[1752668919449,5.9857,167.05,167.01,5.9868]
[1752668920753,5.9852,167.06,167.02,5.9863]
[1752668920946,137.38631673,167.11,166.99,172.64]
[1752668921146,124.0,167.11,166.99,172.64]
[1752668921346,5.9851,167.07,166.99,172.64]
[1752668921553,137.38631673,167.11,166.99,172.64]
[1752668921851,5.9846,167.08,167.04,5.9856]
[1752668922045,124.0,167.11,166.97,172.98]